lending/lending_fUSD_20260330
["ID","MTS","AMOUNT","RATE_DAILY","PERIOD"]
[419123689,1774905034268,-500.0,0.00010783,2]
[419123690,1774905034279,-500.0,0.00010783,2]
[419123691,1774905034288,-500.0,0.00010783,2]
[419123692,1774905034298,-201.11775543,0.00010783,2]
[419123693,1774905034310,-298.88224457,0.00010783,2]
[419123694,1774905034319,-500.0,0.00010783,2]
[419123695,1774905034328,-500.0,0.00010783,2]
[419123696,1774905034338,-150.0,0.000108,2]
[419123697,1774905034349,-249.11,0.00010914,2]
[419123698,1774905034359,-1508.47953738,0.00010934,2]
[419123699,1774905034368,-172.04,0.00010943,2]
[419123700,1774905034380,-500.0,0.00010959,2]
[419123701,1774905034390,-469.64399503,0.00010959,2]
[419123702,1774905034400,-166.66,0.00010959,2]
[419123703,1774905034410,-500.0,0.00010959,2]
[419123704,1774905034420,-5000.0,0.00010999,2]
[419123705,1774905034431,-250.0,0.00010999,2]
[419123706,1774905034441,-255.0,0.00010999,2]
[419123707,1774905034450,-420.0,0.00010999,2]
[419123708,1774905034459,-1680.0,0.00010999,2]
[419123709,1774905034469,-420.0,0.00010999,2]
[419123710,1774905034479,-600.0,0.00011,2]
[419123711,1774905034489,-600.0,0.00011,2]
[419123712,1774905034499,-600.0,0.00011,2]
[419123713,1774905034509,-600.0,0.00011,2]
[419123714,1774905034519,-600.0,0.00011,2]
[419123715,1774905034529,-166.66,0.00011068,2]
[419123716,1774905034539,-368.8069044,0.00011096,2]
[419123717,1774905034549,-166.66,0.00011178,2]
[419123718,1774905034560,-151.0,0.00011215,2]
[419123719,1774905034570,-150.0,0.00011233,2]
[419123720,1774905034580,-500.0,0.00011233,2]
[419123721,1774905034589,-166.66,0.00011288,2]
[419123722,1774905034600,-500.0,0.00011331,2]
[419123723,1774905034609,-1000.0,0.00011331,2]
[419123724,1774905034619,-166.66,0.00011397,2]
[419123725,1774905034629,-3319.42,0.00011436,2]
[419123726,1774905034640,-166.66,0.00011507,2]
[419123727,1774905034650,-500.0,0.00011507,2]
[419123728,1774905034660,-150.0,0.0001171,2]
[419123729,1774905034669,-500.0,0.00011781,2]
[419123730,1774905034679,-172.04,0.00011846,2]
[419123731,1774905034688,-196.9687,0.00012,7]
[419123732,1774905034697,-500.0,0.00012055,2]
[419123733,1774905034706,-433.0,0.00012099,2]
[419123734,1774905034715,-2351.0,0.00012099,2]
[419123735,1774905034724,-587.0,0.00012099,2]
[419123736,1774905034733,-242.12,0.0001222,30]
[419123737,1774905034742,-500.0,0.00012329,2]
[419123738,1774905034751,-878.32470845,0.00012399,2]
[419123739,1774905034760,-500.0,0.0001244,2]
[419123740,1774905034770,-1326.17287744,0.00012592,3]
[419123741,1774905034779,-37944.05,0.00012593,2]
[419123742,1774905034788,-5509.31957863,0.00012649,2]
[419123743,1774905034798,-172.04,0.00012749,2]
[419123744,1774905034807,-252.88,0.0001284,2]
[419123745,1774905034816,-657.0206,0.000129,2]
[419123746,1774905034825,-8475.1355,0.000129,2]
[419123747,1774905034834,-1500.0,0.00012963,2]
[419123748,1774905034843,-484.24,0.00012965,30]
[419123749,1774905034853,-1001.9357854,0.00012988,2]
[419123750,1774905034862,-4124.27330374,0.00013,2]
[419123751,1774905034871,-22831.2531,0.00013257,2]
[419123752,1774905034880,-1000.0,0.00013257,2]
[419123753,1774905034889,-490.0,0.00013309,2]
[419123754,1774905034898,-823.0,0.00013309,2]
[419123755,1774905034907,-3292.0,0.00013309,2]
[419123756,1774905034916,-258.6446,0.000134,12]
[419123757,1774905034925,-160.0,0.00013437,2]
[419123758,1774905034935,-150.0,0.00013699,2]
[419123759,1774905034944,-200.0,0.00013699,2]
[419123760,1774905034955,-726.36,0.00013711,30]
[419123761,1774905034964,-248.67604159,0.00014457,30]
[419123762,1774905034976,-719.80395841,0.00014457,30]
[419123763,1774905034986,-500.0,0.00014636,2]
[419123764,1774905034995,-648.99024396,0.00014638,2]
[419123765,1774905035006,-5899.43892008,0.00014638,2]
[419123766,1774905035015,-1152.0,0.0001464,2]
[419123767,1774905035023,-151.0,0.00014738,2]
[419123768,1774905035033,-500.0,0.00014738,2]
[419123769,1774905035042,-500.0,0.00014738,2]
[419123770,1774905035051,-500.0,0.00014738,2]
[419123771,1774905035059,-500.0,0.00014738,2]
[419123772,1774905035068,-500.0,0.00014738,2]
[419123773,1774905035077,-500.0,0.00014738,2]
[419123774,1774905035086,-500.0,0.00014738,2]
[419123775,1774905035095,-472.63857322,0.00014738,2]
[419123776,1774905035105,-378.70961879,0.00014738,2]
[419123777,1774905035114,-500.0,0.00014738,2]
[419123778,1774905035123,-394.37695468,0.00014738,2]
[419123779,1774905035132,-500.0,0.00014738,2]
[419123780,1774905035141,-500.0,0.00014738,2]
[419123781,1774905035151,-500.0,0.00014738,2]
[419123782,1774905035160,-500.0,0.00014738,2]
[419123783,1774905035171,-500.0,0.00014738,2]
[419123784,1774905035181,-200.0,0.00014738,2]
[419123785,1774905035192,-500.0,0.00014738,2]
[419123786,1774905035201,-500.0,0.00014738,2]
[419123787,1774905035210,-500.0,0.00014738,2]
[419123788,1774905035219,-500.0,0.00014738,2]
[419123789,1774905035228,-500.0,0.00014738,2]
[419123790,1774905035237,-500.0,0.00014738,2]
[419123791,1774905035248,-250.0,0.00014738,2]
[419123792,1774905035258,-151.0,0.00014738,2]
[419123793,1774905035267,-250.0,0.00014738,2]
[419123794,1774905035279,-250.0,0.00014738,2]
[419123795,1774905035290,-250.0,0.00014738,2]
[419123796,1774905035299,-250.0,0.00014738,2]
[419123797,1774905035308,-174.61919141,0.00014738,2]
[419123798,1774905035320,-250.0,0.00014738,2]
[419123799,1774905035330,-250.0,0.00014738,2]
[419123800,1774905035341,-250.0,0.00014738,2]
[419123801,1774905035350,-250.0,0.00014738,2]
[419123802,1774905035359,-250.0,0.00014738,2]
[419123803,1774905035368,-250.0,0.00014738,2]
[419123804,1774905035378,-773.2413689,0.00014738,2]
[419123805,1774905035387,-743.50770149,0.00014738,2]
[419123806,1774905035398,-262.90206542,0.00014738,2]
[419123807,1774905035407,-1406.945945,0.0001478,7]
[419123808,1774905035418,-500.0,0.00014793,2]
[419123809,1774905035427,-151.0,0.00014793,2]
[419123810,1774905035437,-272.62944185,0.00014793,2]
[419123811,1774905035447,-500.0,0.00014848,2]
[419123812,1774905035456,-151.0,0.00014848,2]
[419123813,1774905035465,-282.71673119,0.00014848,2]
[419123814,1774905035474,-339.6327,0.000149,17]
[419123815,1774905035483,-500.0,0.00014903,2]
[419123816,1774905035492,-151.0,0.00014903,2]
[419123817,1774905035501,-386.65528041,0.00014903,2]
[419123818,1774905035510,-160.0,0.00014905,2]
[419123819,1774905035519,-500.0,0.00014958,2]
[419123820,1774905035528,-151.0,0.00014958,2]
[419123821,1774905035537,-160.0,0.00014963,7]
[419123822,1774905035547,-160.0,0.00015004,7]
[419123823,1774905035556,-79.57626115,0.00015013,2]
[419123824,1774905035582,-420.42373885,0.00015013,2]
[419123825,1774905035592,-151.0,0.00015013,2]
[419123826,1774905035601,-471.257,0.00015068,2]
[419123827,1774905035611,-415.0,0.00015068,2]
[419123828,1774905035622,-500.0,0.00015068,2]
[419123829,1774905035631,-500.0,0.00015123,2]
[419123830,1774905035641,-1000.0,0.00015184,2]
[419123831,1774905035651,-1210.6,0.00015203,30]
[419123832,1774905035660,-1004.28566155,0.00015269,2]
[419123833,1774905035672,-40.71433845,0.00015269,2]
[419123834,1774905035682,-1074.62447179,0.00015269,2]
[419123835,1774905035694,-525.79675041,0.00015269,2]
[419123836,1774905035717,-1246.48,0.00015269,2]
[419123837,1774905035728,-671.0987778,0.00015269,2]
[419123838,1774905035738,-314.3197222,0.00015269,2]
[419123842,1774905037684,-400.93977782,0.00015269,2]
[419123843,1774905037737,-546.74049998,0.00015269,2]
[419123844,1774905037746,-559.12548972,0.00015269,2]
[419123845,1774905037793,-656.87451028,0.00015269,2]
[419123846,1774905037802,-437.12548972,0.00015269,2]
[419123847,1774905037813,-487.87451028,0.00015269,2]
[419123848,1774905037822,-197.75,0.00015286,2]
[419123849,1774905037831,-181.08010149,0.00015286,2]
[419123850,1774905037841,-153.5912263,0.0001531,2]
[419123861,1774905039730,-513.28348177,0.00015068,2]
[419123862,1774905040307,-474.24616922,0.00015068,2]
[419123863,1774905040362,-462.52965099,0.00015068,2]
[419123864,1774905040416,-1017.94069802,0.00015068,2]
[419123865,1774905040425,-154.4387737,0.0001531,2]
[419123866,1774905040435,-299.99,0.0001531,2]
[419123867,1774905040444,-9999.99,0.0001531,2]
[419123868,1774905040455,-9999.99,0.0001531,2]
[419123869,1774905040465,-160.0,0.00015582,7]
[419123870,1774905040475,-3100.0,0.000156,5]
[419123871,1774905040484,-193.0,0.00015643,2]
[419123872,1774905040494,-357.136404,0.0001568,7]
[419123873,1774905040504,-6200.0,0.000157,5]
[419123874,1774905040513,-2808.0,0.0001571,2]
[419123875,1774905040523,-502.55264949,0.00015732,2]
[419123877,1774905040532,-2500.0,0.00015734,2]
[419123879,1774905040541,-6548.42916404,0.00015767,2]
[419123881,1774905040552,-9400.0,0.000158,5]
[419123883,1774905040561,-187.78006525,0.00015834,2]
[419123885,1774905040570,-3913.89434802,0.00015873,2]
[419123887,1774905040580,-2000.0,0.00015874,3]
[419123889,1774905040589,-1285.267,0.0001589,2]
[419123891,1774905040599,-205.563,0.0001589,2]
[419123893,1774905040608,-2000.0,0.0001589,2]
[419123895,1774905040618,-12500.0,0.000159,5]
[419123897,1774905040628,-860.314268,0.000159,2]
[419123900,1774905040644,-6756.04161558,0.00015901,2]
[419123902,1774905040654,-1093.49785821,0.00015901,2]
[419123904,1774905040664,-6155.827237,0.00015901,2]
[419123914,1774905040884,-1452.72,0.00015949,30]
[419123915,1774905040894,-10730.0,0.00015973,2]
[419123916,1774905040906,-500.0,0.00015973,2]
[419123917,1774905040916,-388.43757161,0.00015973,2]
[419123918,1774905040926,-500.50490882,0.00015973,2]
[419123919,1774905040935,-500.0,0.00015973,2]
[419123920,1774905040945,-500.0,0.00015973,2]
[419123921,1774905040957,-500.0,0.00015973,2]
[419123922,1774905040967,-958.37198167,0.0001599,2]
[419123923,1774905040977,-270.0,0.00015996,2]
[419123924,1774905040986,-460.73026818,0.00015999,2]
[419123925,1774905040996,-500.0,0.00015999,2]
[419123926,1774905041007,-192.24889191,0.00015999,2]
[419123927,1774905041016,-500.0,0.00015999,2]
[419123928,1774905041026,-500.0,0.00015999,2]
[419123929,1774905041035,-500.0,0.00015999,2]
[419123930,1774905041045,-465.84430006,0.00015999,2]
[419123931,1774905041055,-500.0,0.00015999,2]
[419123932,1774905041064,-500.0,0.00015999,2]
[419123933,1774905041074,-500.0,0.00015999,2]
[419123934,1774905041084,-500.0,0.00015999,2]
[419123935,1774905041094,-500.0,0.00015999,2]
[419123936,1774905041103,-500.0,0.00015999,2]
[419123937,1774905041113,-500.0,0.00015999,2]
[419123938,1774905041122,-500.0,0.00015999,2]
[419123939,1774905041132,-500.0,0.00015999,2]
[419123940,1774905041142,-500.0,0.00015999,2]
[419123941,1774905041151,-500.0,0.00015999,2]
[419123942,1774905041161,-500.0,0.00015999,2]
[419123943,1774905041170,-500.0,0.00015999,2]
[419123944,1774905041180,-500.0,0.00015999,2]
[419123945,1774905041189,-500.0,0.00015999,2]
[419123946,1774905041200,-500.0,0.00015999,2]
[419123947,1774905041216,-500.0,0.00015999,2]
[419123948,1774905041226,-500.0,0.00015999,2]
[419123949,1774905041236,-500.0,0.00015999,2]
[419123950,1774905041245,-500.0,0.00015999,2]
[419123951,1774905041255,-500.0,0.00015999,2]
[419123952,1774905041266,-500.0,0.00015999,2]
[419123953,1774905041276,-500.0,0.00015999,2]
[419123954,1774905041286,-500.0,0.00015999,2]
[419123955,1774905041296,-500.0,0.00015999,2]
[419123956,1774905041307,-500.0,0.00015999,2]
[419123957,1774905041316,-500.0,0.00015999,2]
[419123958,1774905041326,-500.0,0.00015999,2]
[419123959,1774905041336,-500.0,0.00015999,2]
[419123960,1774905041345,-500.0,0.00015999,2]
[419123961,1774905041360,-500.0,0.00015999,2]
[419123962,1774905041370,-500.0,0.00015999,2]
[419123963,1774905041379,-500.0,0.00015999,2]
[419123964,1774905041389,-500.0,0.00015999,2]
[419123965,1774905041399,-500.0,0.00015999,2]
[419123966,1774905041408,-500.0,0.00015999,2]
[419123967,1774905041418,-303.18504721,0.00015999,2]
[419123968,1774905041427,-500.0,0.00015999,2]
[419123969,1774905041437,-500.0,0.00015999,2]
[419123970,1774905041446,-295.26259406,0.00015999,2]
[419123971,1774905041458,-500.0,0.00015999,2]
[419123972,1774905041467,-500.0,0.00015999,2]
[419123973,1774905041477,-500.0,0.00015999,2]
[419123974,1774905041487,-500.0,0.00015999,2]
[419123975,1774905041496,-500.0,0.00015999,2]
[419123976,1774905041506,-500.0,0.00015999,2]
[419123977,1774905041515,-500.0,0.00015999,2]
[419123978,1774905041525,-500.0,0.00015999,2]
[419123979,1774905041534,-300.0,0.00015999,2]
[419123980,1774905041544,-10875.65882036,0.00016,2]
[419123983,1774905042734,-834.01545724,0.00014951,2]
[419123984,1774905042788,-1823.68818249,0.00014951,2]
[419123985,1774905042800,-5079.84636027,0.00014951,2]
[419123986,1774905042820,-2234.5264231,0.00016,2]
[419124003,1774905045686,-1667.43596708,0.00016,2]
[419124004,1774905045709,-12072.1015873,0.00016,2]
[419124034,1774906162145,-927.99,9.515e-05,2]
[419124035,1774906162166,-250.0,9.515e-05,2]
[419124036,1774906162188,-253.0,9.515e-05,2]
[419124037,1774906162208,-2784.7147853,9.75e-05,2]
[419124038,1774906162231,-1200.0,9.761e-05,2]
[419124039,1774906162256,-384.54439494,9.862e-05,2]
[419124053,1774906231600,-530.0,9.326e-05,2]
[419124054,1774906231611,-175.45560506,9.862e-05,2]
[419124055,1774906231620,-126.19397365,9.862e-05,2]
[419124056,1774906231633,-131.80602635,9.862e-05,2]
[419124057,1774906231642,-436.57,0.00010108,2]
[419124058,1774906231652,-290.968,0.00010119,2]
[419124059,1774906231661,-790.0,0.00010179,2]
[419124060,1774906231671,-880.0,0.00010356,2]
[419124061,1774906231680,-243.13093279,0.00010466,2]
[419124062,1774906231691,-6.86906721,0.00010466,2]
[419124063,1774906231700,-250.0,0.00010466,2]
[419124064,1774906231710,-1100.0,0.00010514,2]
[419124065,1774906231720,-150.0,0.000108,2]
[419124066,1774906231730,-222.5155353,0.00010848,2]
[419124067,1774906231739,-166.40466224,0.00010848,2]
[419124068,1774906231761,-952.31533776,0.00010848,2]
[419124069,1774906231771,-935.99,0.00011061,2]
[419124070,1774906231782,-720.0,0.00011131,2]
[419124071,1774906231792,-518.44,0.00011359,2]
[419124072,1774906231801,-500.0,0.00012042,3]
[419124073,1774906231810,-500.0,0.00012103,2]
[419124074,1774906231820,-723.21287554,0.0001212,2]
[419124075,1774906231829,-151.0,0.00012123,2]
[419124076,1774906231839,-151.0,0.00012123,2]
[419124077,1774906231849,-151.0,0.00012123,2]
[419124078,1774906231858,-151.0,0.00012123,2]
[419124079,1774906231868,-151.0,0.00012123,2]
[419124081,1774906231877,-151.0,0.00012123,2]
[419124082,1774906231887,-151.0,0.00012123,2]
[419124083,1774906231898,-151.0,0.00012123,2]
[419124084,1774906231907,-151.0,0.00012123,2]
[419124085,1774906231917,-151.0,0.00012123,2]
[419124086,1774906231927,-151.0,0.00012123,2]
[419124088,1774906231937,-151.0,0.00012123,2]
[419124089,1774906231947,-151.0,0.00012123,2]
[419124090,1774906231956,-151.0,0.00012123,2]
[419124091,1774906231969,-151.0,0.00012123,2]
[419124092,1774906231978,-151.0,0.00012123,2]
[419124093,1774906231988,-151.0,0.00012123,2]
[419124094,1774906231998,-151.0,0.00012123,2]
[419124095,1774906232007,-151.0,0.00012123,2]
[419124096,1774906232018,-151.0,0.00012123,2]
[419124097,1774906232028,-151.0,0.00012123,2]
[419124098,1774906232038,-151.0,0.00012123,2]
[419124099,1774906232047,-151.0,0.00012123,2]
[419124100,1774906232057,-151.0,0.00012123,2]
[419124101,1774906232066,-151.0,0.00012123,2]
[419124102,1774906232076,-151.0,0.00012123,2]
[419124103,1774906232086,-1386.78395259,0.00012123,2]
[419124104,1774906232095,-64685.22,0.0001213,2]
[419124105,1774906232105,-150.0,0.00012176,2]
[419124106,1774906232116,-151.0,0.00012191,2]
[419124107,1774906232127,-500.0,0.000122,2]
[419124108,1774906232137,-380.89845004,0.000122,2]
[419124109,1774906232147,-500.0,0.000122,2]
[419124110,1774906232157,-500.0,0.000122,2]
[419124111,1774906232168,-500.0,0.000122,2]
[419124112,1774906232178,-500.0,0.000122,2]
[419124113,1774906232188,-2000.0,0.00012202,2]
[419124114,1774906232198,-1852.42,0.00012202,2]
[419124115,1774906232208,-196.9403,0.000123,7]
[419124116,1774906232218,-500.0,0.000123,2]
[419124117,1774906232228,-200.0,0.00012426,2]
[419124118,1774906232237,-202.3,0.00012861,2]
[419124119,1774906232247,-250.0,0.00013,2]
[419124120,1774906232258,-258.5699,0.000137,12]
[419124121,1774906232268,-2000.0,0.00013727,2]
[419124122,1774906232277,-5347.21,0.00014632,2]
[419124123,1774906232287,-500.0,0.0001466,2]
[419124124,1774906232297,-334.63952761,0.0001466,2]
[419124125,1774906232308,-2808.0,0.0001477,2]
[419124126,1774906232319,-1500.0,0.000149,5]
[419124127,1774906232331,-160.0,0.00014911,2]
[419124128,1774906232340,-174.61919141,0.0001494,2]
[419124129,1774906232350,-250.0,0.0001494,2]
[419124130,1774906232359,-250.0,0.0001494,2]
[419124131,1774906232369,-250.0,0.0001494,2]
[419124132,1774906232379,-250.0,0.0001494,2]
[419124133,1774906232388,-250.0,0.0001494,2]
[419124134,1774906232397,-250.0,0.0001494,2]
[419124135,1774906232406,-250.0,0.0001494,2]
[419124136,1774906232416,-250.0,0.0001494,2]
[419124137,1774906232425,-250.0,0.0001494,2]
[419124138,1774906232434,-250.0,0.0001494,2]
[419124139,1774906232444,-250.0,0.0001494,2]
[419124140,1774906232453,-300.0,0.00015,2]
[419124141,1774906232462,-1259.4556,0.0001515,2]
[419124142,1774906232472,-2500.0,0.0001515,2]
[419124143,1774906232481,-9806.68827633,0.00015152,2]
[419124144,1774906232490,-3511.97374473,0.00015152,2]
[419124145,1774906232499,-5691.90536154,0.00015173,2]
[419124146,1774906232509,-339.4856,0.000152,17]
[419124147,1774906232521,-3146.53142682,0.0001521,2]
[419124148,1774906232531,-500.0,0.00015249,2]
[419124149,1774906232543,-500.0,0.00015249,2]
[419124150,1774906232556,-500.0,0.00015249,2]
[419124151,1774906232566,-500.0,0.00015249,2]
[419124152,1774906232577,-500.0,0.00015249,2]
[419124153,1774906232587,-339.80914466,0.00015249,2]
[419124154,1774906232597,-500.0,0.00015249,2]
[419124155,1774906232608,-500.0,0.00015249,2]
[419124156,1774906232619,-500.0,0.00015249,2]
[419124157,1774906232629,-500.0,0.00015249,2]
[419124158,1774906232639,-500.0,0.00015249,2]
[419124159,1774906232650,-500.0,0.00015249,2]
[419124160,1774906232660,-500.0,0.00015249,2]
[419124161,1774906232669,-500.0,0.00015249,2]
[419124162,1774906232679,-500.0,0.00015249,2]
[419124163,1774906232688,-500.0,0.00015249,2]
[419124164,1774906232698,-500.0,0.00015249,2]
[419124165,1774906232707,-500.0,0.00015249,2]
[419124166,1774906232716,-500.0,0.00015249,2]
[419124167,1774906232726,-500.0,0.00015249,2]
[419124168,1774906232736,-500.0,0.00015249,2]
[419124169,1774906232751,-500.0,0.00015249,2]
[419124170,1774906232761,-500.0,0.00015249,2]
[419124171,1774906232772,-500.0,0.00015249,2]
[419124172,1774906232782,-178050.33400536,0.0001525,2]
[419124173,1774906233898,-117427.34896511,0.0001525,2]
[419124174,1774906233911,-230726.84568496,0.0001525,2]
[419124175,1774906233923,-91394.99205344,0.0001525,2]
[419124176,1774906233936,-699.49483532,0.0001525,2]
[419124177,1774906233960,-64051.99759321,0.0001525,2]
[419124178,1774906233971,-472.0526679,0.0001525,2]
[419124179,1774906234006,-484.55790331,0.0001525,2]
[419124180,1774906234018,-2000.0,0.0001525,2]
[419124181,1774906234038,-723.749995,0.0001525,2]
[419124182,1774906234049,-846.20302202,0.0001525,2]
[419124186,1774906237681,-1041.30749209,0.0001525,2]
[419124187,1774906237691,-898.06061579,0.0001525,2]
[419124188,1774906237702,-1188.74622491,0.0001525,2]
[419124189,1774906237735,-803.28364158,0.0001525,2]
[419124190,1774906237744,-141.04635842,0.00015252,2]
[419124195,1774906239919,-1858.95364158,0.00015252,2]
[419124196,1774906239929,-2808.0,0.00015295,2]
[419124197,1774906239938,-1251.13,0.00015302,2]
[419124198,1774906239947,-28258.50657785,0.0001531,2]
[419124199,1774906239959,-789.41342215,0.0001531,2]
[419124200,1774906239967,-4999.99,0.0001531,2]
[419124201,1774906239977,-999.99,0.0001531,2]
[419124202,1774906239986,-1007.60970548,0.0001531,2]
[419124203,1774906240238,-157.26,0.0001446,2]
[419124204,1774906240248,-8992.38029452,0.0001531,2]
[419124205,1774906240257,-150.99,0.0001531,2]
[419124206,1774906240267,-1297.3937403,0.0001531,2]
[419124207,1774906240278,-321.535,0.0001531,2]
[419124208,1774906240291,-7884.3512597,0.0001531,2]
[419124209,1774906240300,-909.67669517,0.0001536,2]
[419124210,1774906240312,-661.32330483,0.0001536,2]
[419124211,1774906240322,-316.23049356,0.00015361,2]
[419124212,1774906240332,-181.08010149,0.00015488,2]
[419124213,1774906240342,-295.6122449,0.00015555,2]
[419124214,1774906240356,-1289.89882496,0.00015555,2]
[419124215,1774906240368,-1561.02035696,0.00015555,2]
[419124216,1774906240378,-323.42135429,0.00015556,2]
[419124217,1774906240395,-4200.00031248,0.00015556,2]
[419124218,1774906240408,-1583.41443103,0.00015556,2]
[419124219,1774906240419,-711.515,0.00015556,2]
[419124220,1774906240431,-1349.90711029,0.00015556,2]
[419124221,1774906240446,-493.65095226,0.00015556,2]
[419124222,1774906240457,-1069.95493965,0.00015556,2]
[419124223,1774906240466,-1000.0,0.00015556,2]
[419124224,1774906240476,-2808.0,0.00015643,2]
[419124225,1774906240486,-1571.0,0.00015643,2]
[419124226,1774906240495,-1262.0,0.00015646,2]
[419124227,1774906240504,-1216.0,0.00015646,2]
[419124228,1774906240514,-925.0,0.00015646,2]
[419124229,1774906240523,-3518.0,0.00015646,2]
[419124230,1774906240532,-1045.0,0.00015646,2]
[419124231,1774906240541,-9806.68827624,0.0001568,2]
[419124232,1774906240550,-1571.0,0.0001568,2]
[419124233,1774906240559,-5691.90536147,0.00015698,2]
[419124234,1774906240569,-3100.0,0.000157,5]
[419124235,1774906240579,-743.0,0.00015781,2]
[419124236,1774906240589,-3245.53027303,0.000158,5]
[419124237,1774906240601,-1454.46972697,0.000158,5]
[419124238,1774906240610,-845.53027303,0.00015853,2]
[419124239,1774906240629,-621.0,0.00015646,2]
[419124240,1774906240638,-49.48004675,0.00015853,2]
[419124241,1774906240650,-267.764,0.00015853,2]
[419124242,1774906240662,-573.42567581,0.00015853,2]
[419124243,1774906240673,-2147.81988213,0.00015853,2]
[419124244,1774906240684,-1260.0,0.00015853,2]
[419124246,1774906240695,-956.485885,0.00015853,2]
[419124249,1774906240713,-3376.36012688,0.00015853,2]
[419124251,1774906240722,-2025.1676521,0.00015853,2]
[419124253,1774906240731,-4039.1790877,0.00015853,2]
[419124255,1774906240740,-10995.6971865,0.00015853,2]
[419124258,1774906240749,-702.2185258,0.00015853,2]
[419124260,1774906240758,-1028.214,0.00015874,2]
[419124262,1774906240766,-11671.8011,0.000159,2]
[419124264,1774906240775,-188.69022462,0.000159,2]
[419124266,1774906240785,-5000.0,0.000159,2]
[419124268,1774906240795,-6300.0,0.000159,5]
[419124270,1774906240805,-255.50324209,0.000159,2]
[419124271,1774906240814,-714.2528808,0.000159,2]
[419124273,1774906240823,-540.87930856,0.000159,2]
[419124275,1774906240832,-3146.53142682,0.000159,2]
[419124277,1774906240842,-4713.0,0.00015937,2]
[419124279,1774906240851,-500.0,0.00015973,2]
[419124281,1774906240860,-418.56315304,0.00015973,2]
[419124283,1774906240869,-500.0,0.00015973,2]
[419124285,1774906240878,-500.0,0.00015973,2]
[419124287,1774906240888,-500.44640306,0.00015973,2]
[419124289,1774906240897,-500.0,0.00015973,2]
[419124291,1774906240907,-500.0,0.00015973,2]
[419124293,1774906240916,-527.58662996,0.00015973,2]
[419124295,1774906240925,-500.30149331,0.00015973,2]
[419124297,1774906240934,-500.0,0.00015973,2]
[419124299,1774906240943,-500.0,0.00015973,2]
[419124301,1774906240952,-200.0,0.00015984,2]
[419124303,1774906240962,-200.0,0.00015984,2]
[419124305,1774906240971,-200.0,0.00015984,2]
[419124307,1774906240981,-638.91465445,0.0001599,2]
[419124309,1774906240990,-151.0,0.00015997,2]
[419124311,1774906241001,-500.0,0.00015999,2]
[419124313,1774906241010,-500.0,0.00015999,2]
[419124315,1774906241019,-500.0,0.00015999,2]
[419124317,1774906241028,-500.0,0.00015999,2]
[419124319,1774906241037,-500.0,0.00015999,2]
[419124321,1774906241046,-500.0,0.00015999,2]
[419124323,1774906241054,-500.0,0.00015999,2]
[419124325,1774906241063,-500.0,0.00015999,2]
[419124327,1774906241072,-500.0,0.00015999,2]
[419124328,1774906241081,-500.0,0.00015999,2]
[419124330,1774906241091,-500.0,0.00015999,2]
[419124332,1774906241101,-500.0,0.00015999,2]
[419124334,1774906241110,-192.89475755,0.00015999,2]
[419124336,1774906241120,-500.0,0.00015999,2]
[419124338,1774906241129,-500.0,0.00015999,2]
[419124340,1774906241138,-500.0,0.00015999,2]
[419124342,1774906241147,-500.0,0.00015999,2]
[419124344,1774906241156,-322.51118772,0.00015999,2]